fUST/lending_fUST_20240123
["ID","MTS","AMOUNT","RATE_DAILY","PERIOD"]
[312575507,1706020229542,154.98450155,0.00013953,2]
[312575590,1706020234726,-2861.6768462,0.00015502,2]
[312575685,1706020239692,-3064.07297573,0.00015502,2]
[312575686,1706020239911,-2837.45074808,0.00015502,2]
[312575688,1706020239921,-555.44587219,0.00015502,2]
[312575690,1706020239931,-170.73307473,0.00015502,2]
[312575691,1706020239942,-482.07153633,0.00015502,2]
[312575692,1706020239952,-1242.70829292,0.00015502,2]
[312575693,1706020239961,-261.16845223,0.00015502,2]
[312575694,1706020239971,-1293.92708226,0.00015502,2]
[312575695,1706020239980,-236.21507653,0.00015502,2]
[312575696,1706020239989,-193.55679193,0.00015502,2]
[312575697,1706020239999,-612.22901335,0.00015502,2]
[312575698,1706020240009,-4398.12375453,0.00015503,2]
[312575699,1706020240020,-7501.70456627,0.00015503,2]
[312575700,1706020240030,-680.18772448,0.00015503,2]
[312575701,1706020240039,-876.49195617,0.00015503,2]
[312575702,1706020240049,-36970.40189612,0.00015503,2]
[312575703,1706020240058,-166.69766072,0.00015503,2]
[312575704,1706020240068,-156.97807928,0.00015504,2]
[312575705,1706020240078,-3674.65622908,0.00015504,2]
[312575706,1706020240088,-214.31430216,0.00015504,2]
[312575707,1706020240097,-46944.69728842,0.00015505,2]
[312575708,1706020240106,-157.31797078,0.00015511,2]
[312575709,1706020240115,-1514.13642497,0.00015511,2]
[312575710,1706020240125,-665.16164932,0.00015512,2]
[312575711,1706020240134,-155.6406213,0.0001552,2]
[312575712,1706020240144,-1992.23225962,0.0001552,2]
[312575713,1706020240154,-597.02050962,0.0001552,2]
[312575714,1706020240163,-2074.30424928,0.00015526,2]
[312575715,1706020240173,-729.93019452,0.00015794,2]
[312575716,1706020240182,-729.93019452,0.00015794,2]
[312575717,1706020240191,-329.5866367,0.0001592,2]
[312575718,1706020240201,-620.06102847,0.00015925,2]
[312575719,1706020240210,-178.72553663,0.00015998,2]
[312575720,1706020240220,-271.64376211,0.00015998,2]
[312575721,1706020240229,-214.34269461,0.00015998,2]
[312575722,1706020240238,-246.1618135,0.00015998,2]
[312575723,1706020240248,-446.91908855,0.00015999,2]
[312575724,1706020240258,-876.30197179,0.00015999,2]
[312575725,1706020240267,-2114.59392956,0.00015999,2]
[312575726,1706020240276,-478.57043616,0.00015999,2]
[312575727,1706020240286,-272.61348865,0.000165,2]
[312575728,1706020240295,-200.0,0.00017062,2]
[312575729,1706020240305,-874.53177436,0.00017235,2]
[312575730,1706020240314,-280.0,0.00018768,2]
[312575731,1706020240323,-160.65901779,0.00020241,2]
[312575732,1706020240334,-1438.16205573,0.00020946,2]
[312575733,1706020240343,-6233.24582128,0.00020947,2]
[312575734,1706020240353,-1719.28066434,0.00020949,2]
[312575735,1706020240362,-716.80399621,0.0002095,2]
[312575736,1706020240372,-2500.0,0.000211,3]
[312575737,1706020240381,-166.666666,0.00021918,2]
[312575739,1706020240391,-426.05744554,0.00022,2]
[312575741,1706020240400,-3969.08835529,0.00022,2]
[312575742,1706020240410,-166.666666,0.00022431,2]
[312575743,1706020240419,-166.666666,0.00022944,2]
[312575744,1706020240428,-1415.52295142,0.00023,2]
[312575745,1706020240437,-166.666666,0.00023456,2]
[312575747,1706020240447,-166.666666,0.00023969,2]
[312575749,1706020240457,-200.0,0.000244,2]
[312575751,1706020240466,-166.666666,0.00024482,2]
[312575753,1706020240475,-168.195619,0.00024658,2]
[312575754,1706020240484,-498.44451698,0.0002496,5]
[312575755,1706020240495,-4724.32599377,0.00025,2]
[312575756,1706020240504,-154.98450155,0.00025,2]
[312575758,1706020240514,-7382.89018777,0.00025,2]
[312575760,1706020240524,-160.65901779,0.0002507,2]
[312575762,1706020240534,-168.195619,0.00025654,2]
[312575764,1706020240544,-187.50736544,0.00025727,2]
[312575765,1706020240554,-369.36764104,0.00025727,2]
[312575766,1706020240564,-739.85471038,0.00025727,2]
[312575767,1706020240573,-1000.0,0.00025727,3]
[312575769,1706020240585,-184.94364562,0.00025727,2]
[312575771,1706020240594,-1000.0,0.00025727,3]
[312575773,1706020240603,-154.6850038,0.00025727,2]
[312575775,1706020240612,-1000.0,0.00025727,3]
[312575777,1706020240621,-168.195619,0.0002665,2]
[312575778,1706020240631,-391.86342974,0.00027,2]
[312575780,1706020240641,-182.62049898,0.00027,4]
[312575781,1706020240651,-155.0,0.00027397,2]
[312575782,1706020240662,-151.0,0.00027397,2]
[312575783,1706020240672,-151.0,0.00027397,2]
[312575784,1706020240682,-151.0,0.00027397,2]
[312575785,1706020240694,-168.195619,0.00027646,2]
[312575786,1706020240706,-150.0,0.000279,2]
[312575787,1706020240716,-1000.0,0.00028,2]
[312575788,1706020240726,-168.195619,0.00028643,2]
[312575789,1706020240736,-155.0,0.00028767,2]
[312575790,1706020240747,-620.00000002,0.00028889,2]
[312575792,1706020240757,-154.98450155,0.00029,2]
[312575794,1706020240767,-1881.13270875,0.00029,2]
[312575795,1706020240778,-166.56195141,0.00029,10]
[312575796,1706020240789,-500.0,0.0002908,2]
[312575797,1706020240799,-154.4374714,0.00029315,2]
[312575798,1706020240809,-309.381098,0.00029315,2]
[312575799,1706020240819,-158.1324523,0.00029315,2]
[312575800,1706020240830,-159.3657322,0.00029315,2]
[312575801,1706020240849,-199.2396578,0.00029315,2]
[312575802,1706020240860,-153.5209745,0.00029315,2]
[312575803,1706020240871,-171.0157685,0.00029315,2]
[312575804,1706020240882,-199.2396578,0.00029315,2]
[312575805,1706020240893,-199.2396578,0.00029315,2]
[312575806,1706020240904,-198.854395,0.00029315,2]
[312575807,1706020240916,-168.195619,0.00029639,2]
[312575808,1706020240926,-160.65901779,0.000299,2]
[312575809,1706020240937,-1266.95335862,0.00029998,2]
[312575810,1706020240947,-251.77331,0.00029999,2]
[312575811,1706020240957,-251.77331,0.00029999,2]
[312575812,1706020240967,-279.50241941,0.00029999,4]
[312575813,1706020240977,-500.0,0.00029999,4]
[312575814,1706020240986,-500.0,0.00029999,4]
[312575815,1706020240996,-500.0,0.00029999,4]
[312575816,1706020241007,-500.0,0.00029999,4]
[312575817,1706020241018,-500.0,0.00029999,4]
[312575818,1706020241028,-500.0,0.00029999,4]
[312575819,1706020241037,-500.0,0.00029999,4]
[312575820,1706020241047,-500.0,0.00029999,4]
[312575821,1706020241057,-400.82419794,0.00029999,4]
[312575822,1706020241068,-500.0,0.00029999,4]
[312575823,1706020241078,-500.0,0.00029999,4]
[312575824,1706020241096,-500.0,0.00029999,4]
[312575825,1706020241107,-500.0,0.00029999,4]
[312575826,1706020241117,-500.0,0.00029999,4]
[312575827,1706020241127,-500.0,0.00029999,4]
[312575828,1706020241137,-500.0,0.00029999,4]
[312575829,1706020241148,-374.77615627,0.00029999,4]
[312575830,1706020241158,-500.0,0.00029999,4]
[312575831,1706020241168,-500.0,0.00029999,4]
[312575832,1706020241177,-500.0,0.00029999,4]
[312575833,1706020241187,-500.0,0.00029999,4]
[312575834,1706020241196,-466.78697537,0.00029999,4]
[312575835,1706020241206,-500.0,0.00029999,4]
[312575836,1706020241216,-500.0,0.00029999,4]
[312575837,1706020241226,-500.0,0.00029999,4]
[312575838,1706020241236,-500.0,0.00029999,4]
[312575839,1706020241246,-500.0,0.00029999,4]
[312575840,1706020241256,-500.0,0.00029999,4]
[312575841,1706020241265,-500.0,0.00029999,4]
[312575842,1706020241275,-500.0,0.00029999,4]
[312575843,1706020241285,-500.0,0.00029999,4]
[312575844,1706020241295,-500.0,0.00029999,4]
[312575845,1706020241306,-500.0,0.00029999,4]
[312575846,1706020241315,-500.0,0.00029999,4]
[312575847,1706020241325,-500.0,0.00029999,4]
[312575848,1706020241339,-500.0,0.00029999,4]
[312575849,1706020241349,-500.0,0.00029999,4]
[312575851,1706020241359,-500.0,0.00029999,4]
[312575852,1706020241368,-259.50726678,0.00029999,4]
[312575853,1706020241378,-500.0,0.00029999,4]
[312575854,1706020241387,-500.0,0.00029999,4]
[312575855,1706020241397,-500.0,0.00029999,4]
[312575859,1706020241512,-500.0,0.00029999,4]
[312575860,1706020241521,-500.0,0.00029999,4]
[312575861,1706020241531,-500.0,0.00029999,4]
[312575862,1706020241540,-500.0,0.00029999,4]
[312575863,1706020241550,-500.0,0.00029999,4]
[312575864,1706020241559,-500.0,0.00029999,4]
[312575865,1706020241568,-500.0,0.00029999,4]
[312575866,1706020241578,-595.79598502,0.00029999,4]
[312575867,1706020241592,-500.0,0.00029999,4]
[312575868,1706020241602,-430.24496122,0.00029999,4]
[312575869,1706020241612,-500.0,0.00029999,4]
[312575870,1706020241621,-500.0,0.00029999,4]
[312575871,1706020241631,-500.0,0.00029999,4]
[312575872,1706020241640,-500.0,0.00029999,4]
[312575873,1706020241650,-500.0,0.00029999,4]
[312575874,1706020241670,-500.0,0.00029999,4]
[312575875,1706020241681,-500.0,0.00029999,4]
[312575876,1706020241690,-500.0,0.00029999,4]
[312575877,1706020241700,-500.0,0.00029999,4]
[312575878,1706020241710,-500.0,0.00029999,4]
[312575879,1706020241719,-500.0,0.00029999,4]
[312575880,1706020241729,-500.0,0.00029999,4]
[312575881,1706020241739,-500.0,0.00029999,4]
[312575882,1706020241748,-500.0,0.00029999,4]
[312575883,1706020241757,-500.0,0.00029999,4]
[312575884,1706020241766,-500.0,0.00029999,4]
[312575885,1706020241775,-500.0,0.00029999,4]
[312575886,1706020241784,-229.93019452,0.00029999,4]
[312575887,1706020241793,-161.94694653,0.00029999,10]
[312575888,1706020241803,-316.37567098,0.00029999,4]
[312575889,1706020241813,-1120.99793907,0.0003,3]
[312575890,1706020241822,-2057.60451034,0.0003,2]
[312575891,1706020241831,-6199.48277774,0.0003,2]
[312575892,1706020241846,-155.2340082,0.0003,4]
[312575893,1706020241855,-3388.18346372,0.0003,2]
[312575894,1706020241864,-244.19834346,0.0003,4]
[312575895,1706020241874,-615.46034166,0.0003,3]
[312575896,1706020241883,-1026.65405285,0.0003,2]
[312575897,1706020241892,-154.98450155,0.0003,4]
[312575898,1706020241902,-154.98450155,0.0003,7]
[312575899,1706020241911,-203140.14043323,0.0003,14]
[312575900,1706020241924,-10202.84952288,0.0003,14]
[312575901,1706020241935,-62325.20383902,0.0003,14]
[312575902,1706020241946,-19293.99999999,0.0003,14]
[312575903,1706020242306,-1539.33850389,0.0003,14]
[312575904,1706020242317,-623.44408401,0.0003,14]
[312576033,1706020246541,-709.12901199,0.00025727,2]
[312576034,1706020246551,-2187.03839785,0.0002969,7]
[312576035,1706020246562,-287.94091577,0.0002969,7]
[312576049,1706020614699,1041.95917541,0.000221,7]
[312576050,1706021192618,-500000.0,0.00043252,7]
[312576051,1706021198441,-139222.3193575,0.00043252,7]
[312576052,1706021198466,-1179.95674187,0.00043252,14]
[312576053,1706021198491,-222.4624505,0.00043252,10]
[312576054,1706021198514,-1010.13356826,0.00043252,10]
[312576055,1706021198538,-358365.12788187,0.00043252,7]
[312576056,1706021217178,-166.56195141,0.00029,10]
[312576057,1706021217202,-154.98450155,0.0002969,7]
[312576058,1706021217227,-224886.87255005,0.0002969,7]
[312576059,1706021217257,-500.0,0.0003,7]
[312576060,1706021217287,-5000.0,0.00030351,7]
[312576061,1706021217315,-36130.0,0.00031,7]
[312576062,1706021217339,-500.0,0.00031,7]
[312576063,1706021217363,-76266.48184445,0.00032,15]
[312576064,1706021217387,-500.0,0.00032,7]
[312576065,1706021217411,-154.87609912,0.000323,7]
[312576066,1706021217574,-39737.64694582,0.00032462,7]
[312576067,1706021217598,-69019.20521429,0.000325,20]
[312576068,1706021217621,-250.0,0.00032876,7]
[312576069,1706021217644,-318.0,0.00033,120]
[312576070,1706021217666,-500.0,0.00033,7]
[312576071,1706021217691,-1000.0,0.0003303,10]
[312576072,1706021217714,-1000.0,0.0003303,10]
[312576073,1706021217737,-2067.0,0.00034,10]
[312576074,1706021217761,-500.0,0.00034,7]
[312576075,1706021217784,-500.0,0.00034246,7]
[312576076,1706021217810,-1116.93095334,0.00035,7]
[312576077,1706021217833,-851.18214647,0.00035,14]
[312576078,1706021217856,-2000.0,0.00035,10]
[312576079,1706021217880,-10000.0,0.00035,15]
[312576080,1706021217902,-26880.2577935,0.00035,10]
[312576081,1706021230205,-18232.71648526,0.00035,10]
[312576082,1706021230231,-500.0,0.00035,7]
[312576083,1706021230256,-907.42357308,0.00035,7]
[312576084,1706021230281,-30206.23532565,0.000355,14]
[312576085,1706021230305,-492.0,0.000356,120]
[312576086,1706021230330,-760.90724995,0.00035616,7]
[312576087,1706021230355,-309.872709,0.00035616,120]
[312576088,1706021230380,-2000.0,0.00036,14]
[312576089,1706021230405,-530.87519552,0.00036,7]
[312576090,1706021230428,-964.42974816,0.00036,7]
[312576091,1706021230452,-906.0,0.00036,7]
[312576092,1706021230477,-705.3793122,0.000366,7]
[312576093,1706021230502,-1000.0,0.00036639,10]
[312576094,1706021230527,-1000.0,0.00036639,10]
[312576095,1706021230551,-1000.0,0.00036639,10]
[312576096,1706021230577,-2000.0,0.00037,21]
[312576097,1706021230600,-5616.93290295,0.00037,8]
[312576098,1706021230624,-150.0,0.00037,30]
[312576099,1706021230648,-150.0,0.000372,30]
[312576100,1706021230671,-150.0,0.000374,30]
[312576101,1706021230694,-150.0,0.000376,30]
[312576102,1706021230717,-150.0,0.000378,30]
[312576103,1706021230741,-161.94694653,0.00037999,10]
[312576104,1706021230766,-150.0,0.00038,30]
[312576105,1706021230790,-1500.0,0.00038,10]
[312576106,1706021230815,-600.0,0.00038,7]
[312576107,1706021230842,-285269.94634981,0.00038,10]
[312576108,1706021230866,-2286.0,0.00038,10]
[312576109,1706021230889,-200.962535,0.00038,9]
[312576110,1706021230914,-150.0,0.000382,30]
[312576111,1706021230938,-150.0,0.000384,30]
[312576112,1706021230965,-150.0,0.000386,30]
[312576113,1706021230988,-150.0,0.000388,30]
[312576114,1706021231011,-150.0,0.00039,30]
[312576115,1706021231034,-1010.11,0.00039,7]
[312576116,1706021231058,-1500.0,0.00039,14]
[312576117,1706021231083,-700.0,0.00039,7]
[312576118,1706021231106,-1000.0,0.00039,39]
[312576119,1706021231129,-151.67156969,0.00039003,7]
[312576120,1706021231153,-282.71519675,0.00039025,8]
[312576121,1706021231176,-150.43942455,0.00039114,7]
[312576122,1706021231200,-269.14812368,0.00039196,7]
[312576123,1706021231224,-150.0,0.000392,30]
[312576124,1706021231247,-269.14812368,0.000392,7]
[312576125,1706021231271,-150.98638473,0.00039253,7]
[312576126,1706021231293,-150.98638473,0.00039271,7]
[312576127,1706021231318,-3230.82241397,0.000393,60]
[312576128,1706021231342,-150.98638473,0.00039339,7]
[312576129,1706021231365,-150.43942455,0.00039349,7]
[312576130,1706021231388,-151.67156969,0.00039375,7]
[312576131,1706021231412,-150.98638473,0.00039395,7]
[312576132,1706021231435,-150.0,0.000394,30]
[312576133,1706021231458,-151.67156969,0.00039457,7]
[312576134,1706021231481,-269.14812368,0.00039482,7]
[312576135,1706021231505,-269.14812368,0.00039494,7]
[312576136,1706021231532,-269.14812368,0.00039567,7]
[312576137,1706021231555,-150.98638473,0.00039569,7]
[312576138,1706021231581,-150.0,0.000396,30]
[312576139,1706021231603,-269.14812368,0.00039639,7]
[312576140,1706021231627,-150.98638473,0.00039662,7]
[312576141,1706021231651,-150.98638473,0.00039664,7]
[312576142,1706021231675,-269.14812368,0.00039682,7]
[312576143,1706021231698,-166.9291756,0.00039716,7]
[312576144,1706021231721,-150.0,0.000398,30]
[312576145,1706021231745,-282.71519675,0.00039806,8]
[312576146,1706021231768,-269.14812368,0.00039808,7]
[312576147,1706021231792,-158.94551714,0.00039815,7]
[312576148,1706021231816,-182.42706309,0.00039919,10]
[312576149,1706021231839,-150.98638473,0.00039972,7]
[312576150,1706021231863,-158.94551714,0.00039984,7]
[312576151,1706021231886,-150.0,0.0004,30]
[312576152,1706021231909,-6341.24667327,0.0004,15]
[312576153,1706021231932,-2000.0,0.0004,7]
[312576154,1706021231956,-1000.0,0.0004,14]
[312576155,1706021231981,-1473.12581789,0.0004,7]
[312576156,1706021232005,-1024.88,0.0004,8]
[312576157,1706021232028,-1226.4575964,0.0004,10]
[312576158,1706021232164,-1500.0,0.0004,21]
[312576159,1706021232187,-260.0,0.0004,10]
[312576160,1706021232210,-178.65306496,0.0004,120]
[312576161,1706021232233,-453.641092,0.0004,120]
[312576162,1706021232256,-306.3177978,0.0004,120]
[312576163,1706021232278,-2846.5649358,0.0004,20]
[312576164,1706021232302,-5000.0,0.0004,120]
[312576165,1706021232326,-5000.0,0.0004,120]
[312576166,1706021232350,-152.271233,0.0004,11]
[312576167,1706021232375,-3302.899013,0.0004,27]
[312576168,1706021232398,-269.14812368,0.00040025,30]
[312576169,1706021232425,-158.94551714,0.0004005,30]
[312576170,1706021232448,-150.10168144,0.00040075,30]
[312576171,1706021232471,-269.14812368,0.00040076,30]
[312576172,1706021232493,-269.14812368,0.00040104,30]
[312576173,1706021232515,-150.98638473,0.00040109,30]
[312576174,1706021232537,-269.14812368,0.00040111,30]
[312576175,1706021232560,-154.99418601,0.00040134,30]
[312576176,1706021232583,-158.94551714,0.00040139,30]
[312576177,1706021232605,-269.14812368,0.0004016,30]
[312576178,1706021232628,-150.0,0.000402,30]
[312576179,1706021232651,-151.67156969,0.00040288,30]
[312576180,1706021232675,-158.94551714,0.00040342,30]
[312576181,1706021232698,-158.94551714,0.00040346,30]
[312576182,1706021232720,-158.94551714,0.00040369,30]
[312576183,1706021232743,-1000.0,0.00040387,10]
[312576184,1706021232765,-150.0,0.000404,30]
[312576185,1706021232788,-150.98638473,0.00040415,30]
[312576186,1706021232809,-150.98638473,0.00040422,30]
[312576187,1706021232832,-269.14812368,0.00040446,30]
[312576188,1706021232855,-269.14812368,0.00040475,30]
[312576189,1706021232877,-269.14812368,0.00040495,30]
[312576190,1706021232899,-150.0,0.000405,10]
[312576191,1706021232922,-150.10168144,0.00040509,30]
[312576192,1706021232945,-166.9291756,0.00040539,30]
[312576193,1706021232967,-323.103082,0.00040586,11]
[312576194,1706021232990,-429.0,0.00040596,14]
[312576195,1706021233013,-150.0,0.000406,30]
[312576196,1706021233035,-154.99418601,0.000406,30]
[312576197,1706021233060,-269.14812368,0.00040613,30]
[312576198,1706021233085,-269.14812368,0.00040627,30]
[312576199,1706021233107,-150.98638473,0.00040671,30]
[312576200,1706021233129,-150.43942455,0.00040726,30]
[312576201,1706021233152,-269.14812368,0.00040735,30]
[312576202,1706021233175,-150.0,0.000408,30]
[312576203,1706021233197,-2875.57454295,0.00040825,30]
[312576204,1706021233220,-789.0,0.00040877,7]
[312576205,1706021233243,-269.14812368,0.0004088,30]
[312576206,1706021233267,-151.67156969,0.00040883,30]
[312576207,1706021233291,-150.0,0.00041,30]
[312576208,1706021233315,-30000.0,0.00041,20]
[312576209,1706021233338,-2138.61,0.00041,20]
[312576210,1706021233361,-1016.84,0.00041,9]
[312576211,1706021233385,-274.37879208,0.00041,90]
[312576212,1706021233409,-1000.0,0.00041,41]
[312576213,1706021233438,-5000.0,0.00041,120]
[312576214,1706021233462,-5000.0,0.00041,120]
[312576215,1706021233485,-5000.0,0.00041,120]
[312576216,1706021233508,-1006.80759142,0.00041,10]
[312576217,1706021233531,-150.10168144,0.00041066,30]
[312576218,1706021233554,-500.0,0.00041095,31]
[312576219,1706021233579,-500.0,0.00041095,31]
[312576220,1706021233602,-500.0,0.00041095,31]
[312576221,1706021233625,-500.0,0.00041095,31]
[312576222,1706021233648,-501.79854839,0.00041095,31]
[312576223,1706021233671,-500.0,0.00041095,31]
[312576224,1706021233694,-500.0,0.00041095,31]
[312576225,1706021233718,-632.56,0.00041095,31]
[312576226,1706021233741,-500.0,0.00041095,31]
[312576227,1706021233764,-500.0,0.00041095,31]
[312576228,1706021233787,-506.35301702,0.00041095,31]
[312576229,1706021233811,-500.0,0.00041095,31]
[312576230,1706021233840,-500.0,0.00041095,31]
[312576231,1706021233863,-500.0,0.00041095,31]
[312576232,1706021233887,-500.0,0.00041095,31]
[312576233,1706021233912,-500.0,0.00041095,31]
[312576234,1706021233937,-579.65614316,0.00041095,31]
[312576235,1706021233966,-500.0,0.00041095,14]
[312576236,1706021233990,-500.0,0.00041095,7]
[312576237,1706021234014,-500.0,0.00041095,31]
[312576238,1706021234039,-500.0,0.00041095,31]
[312576239,1706021234062,-500.0,0.00041095,31]
[312576240,1706021234090,-500.0,0.00041095,31]
[312576241,1706021234113,-500.0,0.00041095,31]
[312576242,1706021234137,-365.12498597,0.00041095,31]
[312576243,1706021234161,-500.0,0.00041095,31]
[312576244,1706021234184,-500.0,0.00041095,31]
[312576245,1706021234209,-596.43,0.00041095,31]
[312576246,1706021234234,-500.0,0.00041095,31]
[312576247,1706021234338,-500.0,0.00041095,31]
[312576248,1706021234386,-502.92884008,0.00041095,31]
[312576249,1706021234410,-500.0,0.00041095,31]
[312576250,1706021234433,-500.0,0.00041095,31]
[312576251,1706021234457,-500.0,0.00041095,31]
[312576252,1706021234481,-1113.45,0.00041095,31]
[312576253,1706021234504,-512.68733436,0.00041095,31]
[312576254,1706021234528,-500.0,0.00041095,31]
[312576255,1706021234550,-572.63667872,0.00041095,31]
[312576256,1706021234575,-502.31941817,0.00041095,31]
[312576257,1706021234598,-517.19757327,0.00041095,31]
[312576258,1706021234621,-514.25521038,0.00041095,31]
[312576259,1706021234645,-603.63077966,0.00041095,31]
[312576260,1706021234668,-517.46308926,0.00041095,31]
[312576261,1706021234691,-500.0,0.00041095,31]
[312576262,1706021234714,-500.0,0.00041095,31]
[312576263,1706021234737,-500.0,0.00041095,31]
[312576264,1706021234762,-500.0,0.00041095,31]
[312576265,1706021234785,-500.0,0.00041095,31]
[312576266,1706021234810,-835.16,0.00041095,31]
[312576267,1706021234839,-500.0,0.00041095,31]
[312576268,1706021234865,-500.0,0.00041095,31]
[312576269,1706021234893,-500.0,0.00041095,31]
[312576270,1706021234917,-511.87856357,0.00041095,31]
[312576271,1706021234943,-500.0,0.00041095,31]
[312576272,1706021234970,-500.0,0.00041095,31]
[312576273,1706021234994,-500.0,0.00041095,31]
[312576274,1706021235018,-500.0,0.00041095,31]
[312576275,1706021235043,-500.0,0.00041095,31]
[312576276,1706021235072,-500.0,0.00041095,31]
[312576277,1706021235095,-500.0,0.00041095,31]
[312576278,1706021235119,-500.0,0.00041095,31]
[312576279,1706021235143,-500.0,0.00041095,31]
[312576280,1706021235165,-443.43478177,0.00041095,31]
[312576281,1706021252145,-262.91723609,0.00034931,7]
[312576282,1706021252173,-7049.18570906,0.00035,7]
[312576283,1706021252201,-7049.0,0.00036,7]
[312576284,1706021252228,-150.43942455,0.00039047,7]
[312576285,1706021252253,-158.3224257,0.00039363,7]
[312576286,1706021252278,-154.52354438,0.00039376,7]
[312576287,1706021252302,-158.3224257,0.0003941,7]
[312576288,1706021252326,-150.43942455,0.00039456,7]
[312576289,1706021252352,-158.3224257,0.00039726,7]
[312576290,1706021252388,-158.94551714,0.00039758,7]
[312576291,1706021252414,-150.10168147,0.00039775,7]
[312576292,1706021252440,-154.52354438,0.00039811,7]
[312576293,1706021252466,-158.3224257,0.00039898,7]
[312576294,1706021252490,-150.43942455,0.00039989,7]
[312576295,1706021252515,-154.52354438,0.00040034,30]
[312576296,1706021252539,-158.3224257,0.00040054,30]
[312576297,1706021252562,-158.3224257,0.00040157,30]
[312576298,1706021252586,-158.3224257,0.00040369,30]
[312576299,1706021252610,-154.52354438,0.00040493,30]
[312576300,1706021252635,-154.99418601,0.00040547,30]
[312576301,1706021252659,-166.92917561,0.00040548,30]
[312576302,1706021252685,-158.94551714,0.00040609,30]
[312576303,1706021252711,-158.3224257,0.00040612,30]
[312576304,1706021252737,-158.3224257,0.00040692,30]
[312576305,1706021252762,-158.3224257,0.00040728,30]
[312576306,1706021252787,-375.0,0.00041,14]
[312576307,1706021252813,-154.52354438,0.00041007,30]
[312576308,1706021252839,-150.43942455,0.00041039,30]
[312576309,1706021252864,-151.17337034,0.00041071,30]
[312576310,1706021252892,-56.56521823,0.00041095,31]
[312576311,1706021252917,-500.0,0.00041095,31]
[312576312,1706021252943,-500.0,0.00041095,31]
[312576313,1706021252968,-500.0,0.00041095,31]
[312576314,1706021252996,-500.0,0.00041095,31]
[312576315,1706021253019,-500.0,0.00041095,31]
[312576316,1706021253045,-500.0,0.00041095,31]
[312576317,1706021253070,-500.0,0.00041095,31]
[312576318,1706021253097,-500.0,0.00041095,31]
[312576319,1706021253120,-500.0,0.00041095,7]
[312576320,1706021253143,-500.0,0.00041095,31]
[312576321,1706021253167,-500.0,0.00041095,31]
[312576322,1706021253193,-500.0,0.00041095,31]
[312576323,1706021253216,-500.0,0.00041095,31]
[312576324,1706021253244,-500.0,0.00041095,31]
[312576325,1706021253268,-500.0,0.00041095,31]
[312576326,1706021253448,-500.0,0.00041095,31]
[312576327,1706021253472,-500.0,0.00041095,31]
[312576328,1706021253497,-500.0,0.00041095,31]
[312576329,1706021253520,-500.0,0.00041095,31]
[312576330,1706021253544,-500.2659361,0.00041095,31]
[312576331,1706021253567,-500.0,0.00041095,31]
[312576332,1706021253591,-500.0,0.00041095,31]
[312576333,1706021253621,-505.95,0.00041095,31]
[312576334,1706021253656,-625.79515894,0.00041095,31]
[312576335,1706021253679,-500.0,0.00041095,31]
[312576336,1706021253702,-500.0,0.00041095,31]
[312576337,1706021253725,-541.10630553,0.00041095,31]
[312576338,1706021253748,-500.0,0.00041095,31]
[312576339,1706021253771,-500.0,0.00041095,31]
[312576340,1706021253794,-500.0,0.00041095,31]
[312576341,1706021253816,-205.92009159,0.00041095,31]
[312576342,1706021253839,-500.0,0.00041095,31]
[312576343,1706021253863,-500.0,0.00041095,31]
[312576344,1706021253886,-595.67026586,0.00041095,31]
[312576345,1706021253909,-500.0,0.00041095,31]
[312576346,1706021253935,-500.0,0.00041095,31]
[312576347,1706021253958,-500.0,0.00041095,31]